bitfinex/quotes_BTCUSD_20240712
["timestamp","ask_amount","ask_price","bid_price","bid_amount"]
[1720765518472,0.19693377,57437.0,57433.0,0.27998988]
[1720765518473,0.15690074,57434.0,57433.0,0.27998988]
[1720765518673,0.02042044,57437.0,57436.0,0.19098923]
[1720765518902,0.15690074,57439.0,57436.0,0.19098923]
[1720765519070,0.15690074,57440.0,57439.0,0.03681135]
[1720765519314,0.00854772,57442.0,57441.0,0.03681135]
[1720765519916,0.02959927,57442.0,57441.0,0.03681135]
[1720765520302,0.02959927,57442.0,57438.0,0.03681135]
[1720765520500,0.20368827,57442.0,57438.0,0.03681135]
[1720765520701,0.02959927,57442.0,57438.0,0.03681135]
[1720765521078,0.20368727,57442.0,57438.0,0.03681135]
[1720765521281,0.02959927,57442.0,57439.0,0.22971435]
[1720765521482,0.02959927,57442.0,57441.0,0.07306353]
[1720765521687,0.02959927,57442.0,57441.0,0.10587488]
[1720765521905,0.16539884,57442.0,57441.0,0.42006588]
[1720765522085,0.00854772,57442.0,57441.0,0.42006588]
[1720765522757,0.00854772,57442.0,57441.0,0.24597488]
[1720765522986,0.00854772,57442.0,57441.0,0.11291135]
[1720765523390,0.16535932,57442.0,57441.0,0.11291135]
[1720765523615,0.16535932,57442.0,57441.0,0.0761]
[1720765523802,0.16535932,57442.0,57441.0,0.004]
[1720765523803,0.18263572,57442.0,57441.0,0.004]
[1720765524212,0.18263572,57442.0,57437.0,0.06906353]
[1720765524383,0.15680514,57438.0,57437.0,0.03681135]
[1720765524584,0.15680657,57438.0,57437.0,0.03681135]
[1720765524998,0.15680657,57438.0,57435.0,0.11951135]
[1720765525157,0.15680682,57437.0,57435.0,0.18857488]
[1720765525353,0.15680682,57438.0,57437.0,0.002]
[1720765525869,0.174098,57439.0,57437.0,0.002]
[1720765526473,0.174098,57439.0,57437.0,0.012]
[1720765527255,0.1741,57438.0,57437.0,0.01]
[1720765527879,0.1741,57438.0,57435.0,0.15876353]
[1720765528129,0.15680765,57436.0,57435.0,0.0897]
[1720765528333,0.15680765,57436.0,57435.0,0.68570823]
[1720765528534,0.15680765,57441.0,57440.0,0.25047488]
[1720765528735,0.00854772,57442.0,57441.0,0.03681135]
[1720765528941,0.00854772,57442.0,57441.0,0.10587488]
[1720765529530,0.00854772,57442.0,57441.0,0.03681135]
[1720765529944,0.00854772,57442.0,57441.0,0.10587488]
[1720765531332,0.00854772,57442.0,57441.0,0.11687488]
[1720765531544,0.00854772,57442.0,57441.0,0.12587488]
[1720765533849,0.00854772,57442.0,57441.0,0.05681135]
[1720765534441,0.00854772,57442.0,57441.0,0.12587488]
[1720765534903,0.00854772,57442.0,57441.0,0.05681135]
[1720765535636,0.00854772,57442.0,57441.0,0.12587488]
[1720765538831,0.00854772,57442.0,57441.0,0.35358923]
[1720765539035,0.05827,57444.0,57443.0,1.52707288]
[1720765539240,0.05827,57444.0,57443.0,1.75007288]
[1720765540373,0.05827,57444.0,57443.0,1.85007288]
[1720765540578,0.05827,57444.0,57443.0,2.19824388]
[1720765541565,0.05827,57444.0,57443.0,2.21224388]
[1720765541994,0.05827,57444.0,57443.0,2.41224388]
[1720765542405,0.001,57449.0,57448.0,1.82376488]
[1720765542617,0.001,57449.0,57448.0,2.04976488]
[1720765542820,0.001,57449.0,57448.0,2.14976488]
[1720765544500,0.001,57449.0,57448.0,2.17776488]
[1720765544979,0.00828,57457.0,57456.0,0.88142088]
[1720765545231,0.00828,57457.0,57456.0,0.58142088]
[1720765545453,0.00828,57457.0,57456.0,1.68060488]
[1720765545673,0.00828,57457.0,57456.0,0.78442088]
[1720765545874,0.00828,57457.0,57456.0,1.48060488]
[1720765546076,0.00828,57457.0,57456.0,1.82869688]
[1720765546303,0.00828,57457.0,57456.0,1.03251288]
[1720765546539,0.00828,57457.0,57456.0,0.82951288]
[1720765546964,0.00828,57457.0,57456.0,0.24737488]
[1720765547462,0.00828,57457.0,57456.0,0.10587488]
[1720765547703,0.00828,57457.0,57456.0,0.11987488]
[1720765547876,0.00828,57457.0,57456.0,0.05081135]
[1720765548105,0.00828,57457.0,57456.0,0.10587488]
[1720765548299,0.00828,57457.0,57456.0,0.11987488]
[1720765548507,0.00828,57457.0,57456.0,0.13387488]
[1720765548706,0.00828,57457.0,57456.0,0.10587488]
[1720765549029,0.00828,57457.0,57456.0,0.12787488]
[1720765549426,0.00828,57457.0,57456.0,0.11587488]
[1720765550282,0.00828,57457.0,57456.0,1.18938565]
[1720765550508,0.00828,57457.0,57456.0,1.17938565]
[1720765550706,0.00828,57457.0,57456.0,1.92747765]
[1720765550947,0.00828,57457.0,57456.0,1.95699688]
[1720765551117,0.00828,57457.0,57456.0,2.30508888]
[1720765551687,0.00828,57457.0,57456.0,2.30708888]
[1720765552109,0.00828,57457.0,57456.0,2.30908888]
[1720765552310,0.00828,57457.0,57456.0,2.32308888]
[1720765552513,0.00827,57487.0,57479.0,0.03681135]
[1720765552738,0.00827,57487.0,57485.0,0.03681135]
[1720765552941,0.00827,57487.0,57485.0,0.10587488]
[1720765553501,0.00827,57487.0,57483.0,0.03681135]
[1720765553651,0.0616,57485.0,57483.0,0.03681135]
[1720765553873,0.0616,57485.0,57479.0,0.03681135]
[1720765554057,0.0616,57485.0,57479.0,0.03781135]
[1720765554260,0.52192,57480.0,57479.0,0.001]
[1720765554671,0.17398,57478.0,57472.0,0.03681135]
[1720765554847,0.17398,57478.0,57473.0,0.00306353]
[1720765555269,0.347953,57479.0,57475.0,0.06906353]
[1720765555481,0.347953,57479.0,57472.0,0.03681135]
[1720765555482,0.17398,57478.0,57472.0,0.03681135]
[1720765555683,0.17398,57478.0,57473.0,0.06906353]
[1720765556054,0.17398,57478.0,57475.0,0.06906353]
[1720765556251,0.173982,57477.0,57475.0,0.06906353]
[1720765557270,0.0616,57485.0,57479.0,0.10587488]
[1720765557475,0.173965,57483.0,57479.0,0.10587488]
[1720765557708,0.173965,57483.0,57479.0,0.03681135]
[1720765557884,0.173967,57482.0,57479.0,0.03681135]
[1720765558952,0.17397,57481.0,57478.0,0.03681135]
[1720765559158,0.17397,57481.0,57474.0,0.03681135]
[1720765559159,0.173978,57479.0,57474.0,0.03681135]
[1720765559338,0.173978,57479.0,57477.0,0.00869913]
[1720765559822,0.173979,57478.0,57477.0,0.00869913]
[1720765560188,0.521938,57478.0,57477.0,0.00869913]
[1720765560390,0.38142363,57485.0,57480.0,0.03681135]
[1720765560391,0.11982363,57485.0,57480.0,0.03681135]
[1720765560589,0.00827,57486.0,57482.0,0.06906353]
[1720765560794,0.173961,57484.0,57482.0,0.06906353]
[1720765561006,0.356184,57486.0,57480.0,0.03681135]
[1720765561007,0.273964,57483.0,57480.0,0.03681135]
[1720765561202,0.273964,57483.0,57481.0,0.00306353]
[1720765561403,0.1,57483.0,57481.0,0.00306353]
[1720765561606,0.1,57483.0,57480.0,0.03681135]
[1720765562259,0.1,57483.0,57482.0,0.004]
[1720765562464,0.1,57483.0,57480.0,0.03681135]
[1720765562827,0.1,57483.0,57481.0,0.06906353]
[1720765563030,0.1,57483.0,57479.0,0.08511435]
[1720765563031,0.0278845,57486.0,57485.0,0.10587488]
[1720765563614,0.0278845,57486.0,57485.0,0.03681135]
[1720765564198,0.0278845,57486.0,57481.0,0.03681135]
[1720765564308,0.347933,57483.0,57477.0,0.00869913]
[1720765564517,0.173969,57482.0,57479.0,0.03681135]
[1720765564955,0.173969,57482.0,57477.0,0.07776266]
[1720765564956,0.17397,57481.0,57477.0,0.00869913]
[1720765565163,0.173976,57479.0,57478.0,0.03681135]
[1720765565568,0.521938,57478.0,57477.0,0.00869913]
[1720765566400,0.869897,57478.0,57477.0,0.00869913]
[1720765567509,0.969897,57478.0,57477.0,0.00869913]
[1720765568273,1.317856,57478.0,57477.0,0.00969913]
[1720765569671,1.317856,57478.0,57477.0,0.00869913]
[1720765569867,1.326556,57478.0,57477.0,0.00869913]
[1720765570285,1.326556,57478.0,57477.0,0.00862808]
[1720765570286,2.05349546,57478.0,57477.0,0.00862808]
[1720765570466,1.326556,57478.0,57477.0,0.00862808]
[1720765570876,1.326556,57478.0,57477.0,0.00712808]
[1720765571653,1.326556,57478.0,57477.0,0.00812808]
[1720765571876,1.326556,57478.0,57477.0,0.00912808]
[1720765571877,1.526556,57478.0,57477.0,0.00912808]
[1720765572198,1.526556,57478.0,57477.0,0.00904108]
[1720765572631,1.66831937,57478.0,57477.0,0.01004108]
[1720765572842,2.07946702,57478.0,57477.0,0.00904108]
[1720765573042,0.870062,57467.0,57466.0,0.04974451]
[1720765573246,0.935862,57467.0,57466.0,0.04974451]
[1720765573403,0.174034,57460.0,57459.0,0.1219257]
[1720765574104,0.34807,57460.0,57456.0,0.03681135]
[1720765574345,0.174043,57457.0,57456.0,0.03681135]
[1720765574570,0.174052,57454.0,57451.0,0.17067488]
[1720765574770,0.174052,57454.0,57449.0,0.0761]
[1720765574771,0.348075,57459.0,57455.0,0.03681135]
[1720765575041,0.522138,57456.0,57455.0,0.03681135]
[1720765575289,0.001,57460.0,57449.0,0.0761]
[1720765575460,0.34811,57453.0,57452.0,0.03681135]
[1720765575660,0.69622,57453.0,57448.0,0.08596731]
[1720765575863,0.174058,57452.0,57451.0,0.03681135]
[1720765576117,0.522174,57452.0,57451.0,0.03681135]
[1720765576321,0.522174,57452.0,57450.0,0.03681135]
[1720765576322,0.174061,57451.0,57450.0,0.03681135]
[1720765576925,0.174061,57451.0,57442.0,0.02]
[1720765576926,0.174073,57447.0,57446.0,0.03681135]
[1720765577098,0.34813,57450.0,57443.0,0.10587488]
[1720765577099,0.174082,57444.0,57443.0,0.10587488]
[1720765577295,0.174082,57444.0,57443.0,0.03681135]
[1720765577697,0.348135,57449.0,57447.0,0.06906353]
[1720765577929,0.17407,57448.0,57447.0,0.06906353]
[1720765578108,0.52221,57448.0,57447.0,0.06906353]
[1720765578709,0.174058,57452.0,57451.0,0.00906353]
[1720765578909,0.274058,57452.0,57451.0,0.06906353]
[1720765579133,0.1,57452.0,57451.0,0.06906353]
[1720765579779,0.1,57452.0,57451.0,0.10587488]
[1720765580009,0.1,57453.0,57452.0,0.06906353]
[1720765580563,0.1,57453.0,57452.0,0.06606353]
[1720765581127,0.0198515,57454.0,57453.0,0.10187488]
[1720765581404,0.174033,57461.0,57459.0,0.03681135]
[1720765581724,0.1,57460.0,57459.0,0.03681135]
[1720765581934,0.1182299,57462.0,57461.0,0.06306353]
[1720765581935,0.0182299,57462.0,57461.0,0.06306353]
[1720765582377,0.01993749,57463.0,57462.0,0.09987488]
[1720765583094,0.174007,57469.0,57466.0,0.03681135]
[1720765583557,0.34799,57473.0,57467.0,0.00306353]
[1720765583820,0.01995283,57473.0,57472.0,0.09987488]
[1720765584055,0.0087,57478.0,57477.0,0.03681135]
[1720765584247,0.0087,57478.0,57477.0,0.09987488]
[1720765584374,0.0087,57478.0,57477.0,0.09487488]
[1720765584612,0.0087,57478.0,57477.0,0.15907488]
[1720765584809,0.0087,57478.0,57477.0,0.15807488]
[1720765585410,0.0087,57478.0,57477.0,0.33205688]
[1720765585559,0.0097,57478.0,57477.0,0.16507488]
[1720765585967,0.0087,57478.0,57477.0,0.15807488]
[1720765586162,0.0097,57478.0,57477.0,0.34205688]
[1720765586364,0.0097,57478.0,57477.0,0.16807488]
[1720765586743,0.0097,57478.0,57477.0,0.16507488]
[1720765586946,0.0107,57478.0,57477.0,0.17613841]
[1720765587576,0.0097,57478.0,57477.0,0.16607488]
[1720765587976,0.0107,57478.0,57477.0,0.17807488]
[1720765588177,0.0107,57478.0,57477.0,0.05081135]
[1720765588375,0.0107,57478.0,57477.0,0.11387488]
[1720765590012,0.0107,57478.0,57477.0,0.02]
[1720765590211,0.532638,57478.0,57477.0,0.02]
[1720765590431,0.184679,57478.0,57477.0,0.02]
[1720765590752,0.184679,57478.0,57477.0,0.08306353]
[1720765590753,0.0107,57478.0,57477.0,0.08306353]
[1720765591097,0.0107,57478.0,57477.0,0.11387488]
[1720765591421,0.173965,57483.0,57479.0,0.09387488]
[1720765591646,0.173968,57482.0,57480.0,0.00306353]
[1720765591955,0.173968,57482.0,57479.0,0.09387488]
[1720765592160,0.173965,57483.0,57482.0,0.06306353]
[1720765592375,0.273965,57483.0,57481.0,0.06306353]
[1720765592579,0.273965,57483.0,57479.0,0.03081135]
[1720765592580,0.182225,57486.0,57484.0,0.03081135]
[1720765592729,0.1,57485.0,57482.0,0.03081135]
[1720765592937,0.1,57485.0,57484.0,0.03081135]
[1720765594463,0.1,57485.0,57484.0,0.02981135]
[1720765594696,0.10827,57486.0,57485.0,0.02981135]
[1720765594872,0.00827,57486.0,57485.0,0.09287488]
[1720765596645,0.12997494,57492.0,57485.0,0.09287488]
[1720765596828,0.12997494,57492.0,57489.0,0.06306353]
[1720765597035,0.173939,57492.0,57489.0,0.06306353]
[1720765597159,0.47784494,57493.0,57487.0,0.02981135]
[1720765597160,0.17394,57491.0,57487.0,0.02981135]
[1720765597363,0.173944,57490.0,57487.0,0.02981135]
[1720765598439,0.36736941,57493.0,57487.0,0.02981135]
[1720765598440,0.30391594,57491.0,57487.0,0.02981135]
[1720765598658,0.003,57490.0,57487.0,0.02981135]
[1720765598873,0.103,57490.0,57487.0,0.02981135]
[1720765599481,0.20696636,57490.0,57487.0,0.02981135]
[1720765599803,0.173946,57489.0,57486.0,0.02981135]
[1720765600011,0.173946,57489.0,57485.0,0.02981135]
[1720765600012,0.273949,57488.0,57485.0,0.02981135]
[1720765600204,0.1,57488.0,57486.0,0.02981135]
[1720765600628,0.1,57488.0,57485.0,0.02981135]
[1720765600843,0.273949,57488.0,57485.0,0.02981135]
[1720765601206,0.173955,57486.0,57484.0,0.02981135]
[1720765601412,0.173953,57487.0,57484.0,0.02981135]
[1720765602053,0.27791936,57487.0,57484.0,0.02981135]
[1720765602648,0.27791936,57487.0,57484.0,0.03181135]
[1720765602841,0.27891936,57487.0,57484.0,0.03181135]
[1720765603420,0.173956,57486.0,57484.0,0.03181135]
[1720765603622,0.001,57487.0,57486.0,0.02981135]
[1720765604900,0.001,57487.0,57486.0,0.03081135]
[1720765605738,0.27395,57488.0,57487.0,0.02981135]
[1720765605944,0.1,57488.0,57487.0,0.02981135]
[1720765606786,0.273949,57488.0,57487.0,0.02881135]
[1720765607789,0.623847,57488.0,57487.0,0.02881135]
[1720765608081,0.72779042,57488.0,57487.0,0.02881135]
[1720765609023,0.623847,57488.0,57487.0,0.02881135]
[1720765609300,0.173958,57485.0,57484.0,0.02881135]
[1720765610047,0.10394663,57487.0,57484.0,0.02881135]
[1720765610282,0.173958,57485.0,57484.0,0.02881135]
[1720765610561,0.27790163,57487.0,57484.0,0.02981135]
[1720765610771,0.173956,57486.0,57484.0,0.02981135]
[1720765611725,0.173956,57486.0,57484.0,0.03381135]
[1720765611929,0.173956,57486.0,57484.0,0.02881135]
[1720765612332,0.173956,57486.0,57484.0,0.03081135]
[1720765613462,0.17391419,57486.0,57484.0,0.03081135]
[1720765613663,0.173958,57485.0,57484.0,0.002]
[1720765614643,0.173967,57482.0,57481.0,0.02881135]
[1720765615255,0.173967,57482.0,57479.0,0.02881135]
[1720765615456,0.12993275,57487.0,57479.0,0.02881135]
[1720765615457,0.1814462,57485.0,57479.0,0.02881135]
[1720765615618,0.173973,57480.0,57479.0,0.02881135]
[1720765616231,0.173979,57478.0,57477.0,0.000913]
[1720765616826,0.2779167,57478.0,57477.0,0.000913]
[1720765617032,0.273979,57478.0,57477.0,0.000913]
[1720765617453,0.3078469,57478.0,57477.0,0.000913]
[1720765617616,0.353079,57478.0,57477.0,0.000913]
[1720765618467,0.353079,57478.0,57477.0,0.17292435]
[1720765618468,0.1,57478.0,57477.0,0.17292435]
[1720765618689,0.10396613,57482.0,57480.0,0.02881135]
[1720765618969,0.30392266,57483.0,57480.0,0.1139257]
[1720765618970,0.1,57481.0,57480.0,0.1139257]
[1720765619162,0.1,57482.0,57480.0,0.1129257]
[1720765619335,0.1,57482.0,57480.0,0.11598923]
[1720765619533,0.1,57482.0,57481.0,0.00306353]
[1720765621665,0.1,57482.0,57481.0,0.03187488]
[1720765621866,0.10396298,57484.0,57483.0,0.09087488]
[1720765622678,0.01905271,57486.0,57484.0,0.09087488]
[1720765622866,0.10402425,57485.0,57484.0,0.09087488]
[1720765623068,0.20402425,57485.0,57484.0,0.09087488]
[1720765623226,0.20402425,57485.0,57484.0,0.02781135]
[1720765623227,0.1,57485.0,57484.0,0.02781135]
[1720765623564,0.1,57485.0,57484.0,0.09087488]
[1720765623966,0.1,57485.0,57484.0,0.02781135]
[1720765624167,0.10406854,57485.0,57484.0,0.02781135]
[1720765624374,0.1,57485.0,57484.0,0.02781135]
[1720765624927,0.1,57485.0,57483.0,0.005]
[1720765625146,0.173958,57485.0,57484.0,0.001]
[1720765625609,0.173958,57485.0,57484.0,0.005]
[1720765626016,0.173958,57485.0,57477.0,0.000913]
[1720765626017,0.173979,57478.0,57477.0,0.000913]
[1720765626374,0.43039042,57478.0,57477.0,0.000913]
[1720765626702,0.43038469,57478.0,57477.0,0.000913]
[1720765626829,0.273979,57478.0,57477.0,0.000913]
[1720765627034,0.43038474,57478.0,57477.0,0.000913]
[1720765627283,0.273979,57478.0,57477.0,0.000913]
[1720765627912,0.31895769,57478.0,57477.0,0.000913]
[1720765628110,0.173994,57473.0,57472.0,0.0498552]
[1720765628307,0.273994,57473.0,57472.0,0.0498552]
[1720765628667,0.174003,57471.0,57469.0,0.02781135]
[1720765628873,0.15659005,57470.0,57469.0,0.02781135]
[1720765629073,0.174003,57470.0,57469.0,0.02781135]
[1720765629274,0.33062051,57470.0,57469.0,0.02781135]
[1720765631493,0.15661751,57470.0,57469.0,0.09887488]
[1720765631717,0.15661751,57470.0,57469.0,0.03581135]
[1720765632156,0.33157503,57470.0,57469.0,0.04581135]
[1720765632377,0.175003,57470.0,57469.0,0.04581135]
[1720765633479,0.001,57470.0,57469.0,0.04581135]
[1720765633709,0.001,57470.0,57469.0,0.10887488]
[1720765634219,0.001,57470.0,57469.0,0.04581135]
[1720765634440,0.001,57470.0,57469.0,0.10887488]
[1720765636055,0.001,57470.0,57469.0,0.018]
[1720765636280,0.33150413,57470.0,57469.0,0.018]
[1720765636505,0.175003,57470.0,57469.0,0.018]
[1720765636973,0.0614,57473.0,57469.0,0.018]
[1720765637880,0.0614,57473.0,57469.0,0.01]
[1720765637881,0.23746378,57473.0,57469.0,0.01]
[1720765638079,0.17606378,57472.0,57469.0,0.01]
[1720765638284,0.17606378,57472.0,57469.0,0.014]
[1720765638524,0.17606378,57472.0,57469.0,0.004]
[1720765638874,0.23740344,57473.0,57463.0,0.08511435]
[1720765639097,0.27600344,57472.0,57469.0,0.006]
[1720765639327,0.1,57472.0,57463.0,0.08511435]
[1720765639554,0.15642052,57467.0,57463.0,0.08511435]
[1720765640020,0.15642052,57465.0,57463.0,0.08511435]
[1720765640271,0.1,57466.0,57463.0,0.08511435]
[1720765640272,0.15642052,57464.0,57463.0,0.08511435]
[1720765640530,0.1,57466.0,57463.0,0.08511435]
[1720765640755,0.15640114,57465.0,57463.0,0.08511435]
[1720765640990,0.15640114,57464.0,57463.0,0.08511435]
[1720765641219,0.15640114,57465.0,57463.0,0.08511435]
[1720765641690,0.25640114,57466.0,57463.0,0.08511435]
[1720765642143,0.25640114,57466.0,57463.0,0.08911435]
[1720765642352,0.25636354,57466.0,57463.0,0.08711435]
[1720765642560,0.001,57465.0,57463.0,0.09311435]
[1720765642755,0.001,57465.0,57463.0,0.08711435]
[1720765642963,0.001,57465.0,57463.0,0.08511435]
[1720765643181,0.001,57465.0,57463.0,0.09311435]
[1720765643595,0.1,57466.0,57465.0,0.06306353]
[1720765644006,0.1,57469.0,57466.0,0.06306353]
[1720765644210,0.1,57470.0,57466.0,0.06306353]
[1720765644623,0.1,57470.0,57465.0,0.06306353]
[1720765644820,0.25634453,57470.0,57465.0,0.06306353]
[1720765645240,0.25634453,57470.0,57469.0,0.08511435]
[1720765645682,0.25634453,57470.0,57468.0,0.02781135]
[1720765645683,0.2563224,57470.0,57468.0,0.02781135]
[1720765645889,0.2563224,57470.0,57467.0,0.0639]
[1720765646305,0.2563224,57470.0,57468.0,0.02781135]
[1720765646722,0.2563224,57470.0,57469.0,0.003]
[1720765647129,0.2563224,57470.0,57468.0,0.02781135]
[1720765647540,0.2563224,57470.0,57469.0,0.08511435]
[1720765647950,0.1,57470.0,57469.0,0.08511435]
[1720765648570,0.2563224,57470.0,57469.0,0.08511435]
[1720765648779,0.1,57470.0,57469.0,0.08511435]
[1720765648992,0.1,57470.0,57469.0,0.08811435]
[1720765649201,0.2563224,57470.0,57469.0,0.08811435]
[1720765649606,0.2563224,57470.0,57469.0,0.15117788]
[1720765649817,0.1,57470.0,57469.0,0.15117788]
[1720765650031,0.1,57471.0,57469.0,0.15117788]
[1720765650238,0.1,57471.0,57470.0,0.00306353]
[1720765650868,0.1,57471.0,57469.0,0.06617788]
[1720765651685,0.2563224,57471.0,57469.0,0.06617788]
[1720765651892,0.2563224,57471.0,57469.0,0.06517788]
[1720765652100,0.2573224,57471.0,57469.0,0.06317788]
[1720765652310,0.2573224,57471.0,57470.0,0.001]
[1720765652479,0.25736125,57471.0,57470.0,0.001]
[1720765652693,0.25736125,57471.0,57469.0,0.06317788]
[1720765652897,0.25736143,57471.0,57469.0,0.06417788]
[1720765653302,0.25636143,57471.0,57469.0,0.06417788]
[1720765653453,0.25636143,57471.0,57470.0,0.001]
[1720765653454,0.25736143,57471.0,57470.0,0.001]
[1720765653883,0.25736143,57471.0,57469.0,0.06317788]
[1720765654315,0.12531975,57476.0,57469.0,0.06317788]
[1720765654768,0.14354355,57476.0,57469.0,0.06317788]
[1720765654972,0.0182238,57476.0,57469.0,0.06317788]
[1720765655179,0.001,57471.0,57469.0,0.06317788]
[1720765655623,0.03648342,57476.0,57469.0,0.06317788]
[1720765656100,0.0202238,57476.0,57469.0,0.06517788]
[1720765656515,0.0182238,57476.0,57469.0,0.12724141]
[1720765656719,0.001,57471.0,57469.0,0.12624141]
[1720765657380,0.001,57471.0,57470.0,0.06306353]
[1720765658011,0.0232238,57476.0,57469.0,0.12624141]
[1720765658458,0.0232238,57476.0,57469.0,0.12724141]
[1720765658997,0.0182238,57476.0,57469.0,0.12724141]
[1720765659207,0.0182238,57476.0,57470.0,0.06306353]
[1720765659414,0.17601919,57475.0,57469.0,0.12824141]
[1720765659615,0.10306353,57474.0,57469.0,0.12724141]
[1720765660198,0.10306353,57474.0,57469.0,0.001]
[1720765660424,0.15648385,57470.0,57469.0,0.001]
[1720765660630,0.25648385,57470.0,57469.0,0.001]
[1720765661235,0.1,57470.0,57469.0,0.001]
[1720765661435,0.1792,57470.0,57469.0,0.001]
[1720765662024,0.25834013,57470.0,57464.0,0.04947222]
[1720765662226,0.1,57469.0,57461.0,0.08511435]
[1720765662406,0.15652495,57465.0,57461.0,0.08511435]
[1720765662630,0.00306353,57469.0,57461.0,0.08511435]
[1720765662831,0.15652526,57465.0,57461.0,0.08511435]
[1720765663042,0.00306353,57470.0,57462.0,0.06306353]
[1720765663249,0.15652526,57465.0,57462.0,0.06306353]
[1720765663450,0.15652526,57465.0,57461.0,0.08511435]
[1720765663451,0.15652526,57465.0,57461.0,0.14817788]
[1720765663655,0.15652526,57465.0,57462.0,0.06306353]
[1720765663862,0.15752526,57465.0,57461.0,0.15717788]
[1720765664273,0.15752526,57465.0,57461.0,0.15917788]
[1720765664472,0.15752526,57465.0,57462.0,0.06306353]
[1720765664991,0.15652526,57465.0,57462.0,0.06306353]
[1720765665402,0.15652526,57465.0,57463.0,0.0829]
[1720765665645,0.15652982,57465.0,57463.0,0.0829]
[1720765666265,0.15652982,57465.0,57463.0,0.11071135]
[1720765666471,0.15652982,57465.0,57464.0,0.06306353]
[1720765668122,0.15652982,57465.0,57463.0,0.11371135]
[1720765668330,0.00306353,57469.0,57463.0,0.11371135]
[1720765668331,0.15652982,57464.0,57463.0,0.11071135]
[1720765669177,0.15652982,57464.0,57463.0,0.17377488]
[1720765669401,0.17915958,57469.0,57463.0,0.17477488]
[1720765669585,0.15661704,57464.0,57463.0,0.17477488]
[1720765669801,0.17619417,57469.0,57463.0,0.17477488]
[1720765669970,0.15661704,57464.0,57463.0,0.11071135]
[1720765670191,0.1,57468.0,57463.0,0.11071135]
[1720765670360,0.27619417,57468.0,57463.0,0.11671135]
[1720765670563,0.27619417,57468.0,57463.0,0.03381135]
[1720765671457,0.17619417,57467.0,57463.0,0.03381135]
[1720765671581,0.1,57466.0,57463.0,0.02981135]
[1720765671802,0.1,57466.0,57463.0,0.002]
[1720765672150,0.27619417,57466.0,57463.0,0.002]
[1720765672327,0.17619417,57465.0,57461.0,0.1129257]
[1720765672939,0.17636555,57465.0,57461.0,0.1129257]
[1720765673496,0.1763801,57465.0,57463.0,0.001]
[1720765674070,0.2395801,57465.0,57463.0,0.001]
[1720765674688,0.2395801,57465.0,57461.0,0.08611435]
[1720765674897,0.28132811,57465.0,57458.0,0.04990094]
[1720765675103,0.17639663,57460.0,57458.0,0.04990094]
[1720765675303,0.17639663,57460.0,57458.0,0.04982108]
[1720765675304,0.1,57459.0,57458.0,0.04982108]
[1720765675544,0.1,57459.0,57453.0,0.02781135]
[1720765675770,0.17639546,57457.0,57453.0,0.02781135]
[1720765676153,0.1,57459.0,57450.0,0.10601135]
[1720765676327,0.001,57460.0,57458.0,0.007]
[1720765676528,0.1,57462.0,57452.0,0.02781135]
[1720765676728,0.17635195,57456.0,57450.0,0.16907488]
[1720765676951,0.1,57455.0,57454.0,0.09111435]
[1720765677151,0.09973289,57455.0,57454.0,0.09111435]
[1720765677982,0.09973289,57455.0,57454.0,0.09911435]
[1720765678204,0.16103289,57455.0,57454.0,0.09111435]
[1720765678417,0.16103289,57455.0,57454.0,0.006]
[1720765678600,0.16103289,57455.0,57454.0,0.007]
[1720765678803,0.16103289,57455.0,57454.0,0.006]
[1720765679035,0.16103289,57455.0,57447.0,0.08511435]
[1720765679237,0.16203289,57455.0,57454.0,0.001]
[1720765679472,0.16103289,57455.0,57454.0,0.001]
[1720765679651,0.09973289,57455.0,57454.0,0.001]
[1720765679909,0.001,57455.0,57453.0,0.08511435]
[1720765680120,0.17623589,57454.0,57453.0,0.08511435]
[1720765680332,0.27623589,57454.0,57453.0,0.08511435]
[1720765681619,0.1,57454.0,57453.0,0.08511435]
[1720765683070,0.1,57455.0,57453.0,0.08511435]
[1720765684756,0.1,57456.0,57453.0,0.08511435]
[1720765684971,0.0812,57454.0,57453.0,0.08511435]
[1720765688338,0.0822,57454.0,57453.0,0.08511435]
[1720765692616,0.001,57454.0,57453.0,0.23181435]
[1720765694673,0.001,57454.0,57453.0,0.24051435]
[1720765695299,0.001,57454.0,57453.0,0.30357788]
[1720765695499,0.001,57454.0,57453.0,0.24051435]
[1720765700196,0.01885123,57454.0,57453.0,0.24051435]
[1720765701594,0.11885123,57454.0,57453.0,0.24051435]
[1720765702628,0.11885123,57454.0,57453.0,0.09381435]
[1720765703258,0.20005123,57454.0,57453.0,0.09381435]
[1720765703465,0.35650363,57454.0,57453.0,0.09381435]
[1720765704043,0.35650363,57454.0,57453.0,0.09472735]
[1720765704257,0.35650363,57454.0,57453.0,0.009613]
[1720765704461,0.26395123,57454.0,57453.0,0.009613]
[1720765704620,0.35575025,57454.0,57453.0,0.009613]
[1720765704988,0.00306353,57453.0,57447.0,0.08511435]
[1720765705312,0.2377023,57448.0,57447.0,0.08511435]
[1720765705519,0.33771648,57448.0,57447.0,0.08511435]
[1720765706158,0.1812,57448.0,57447.0,0.08511435]
[1720765707099,0.1812,57448.0,57447.0,0.08911435]
[1720765707728,0.0812,57448.0,57447.0,0.08911435]
[1720765708519,0.0812,57448.0,57447.0,0.09211435]
[1720765709157,0.10901393,57448.0,57447.0,0.09211435]
[1720765709423,0.28601393,57448.0,57447.0,0.09211435]
[1720765709880,0.28601393,57448.0,57447.0,0.007]
[1720765710090,0.35121393,57448.0,57447.0,0.007]
[1720765710672,0.35121393,57448.0,57447.0,0.004]
[1720765710824,0.35121393,57448.0,57442.0,0.02]
[1720765711032,0.0812,57443.0,57442.0,0.02]
[1720765711463,0.1812,57443.0,57442.0,0.02]
[1720765712364,0.35726258,57443.0,57442.0,0.02]
[1720765712573,0.1812,57443.0,57442.0,0.02]
[1720765713350,0.1812,57443.0,57437.0,0.000913]
[1720765713351,0.1389,57442.0,57437.0,0.000913]
[1720765713553,0.0812,57438.0,57437.0,0.000913]
[1720765715033,0.0812,57438.0,57437.0,0.004913]
[1720765715613,0.0812,57438.0,57433.0,0.08511435]
[1720765715815,0.23760464,57434.0,57433.0,0.08511435]
[1720765716048,0.23760464,57434.0,57430.0,8.72e-05]
[1720765716049,0.33760464,57434.0,57430.0,8.72e-05]
[1720765716258,0.0812,57431.0,57430.0,8.72e-05]